Cogmind - Beta 14 @@@ ROGUE MODE // 2024.10.27 @ 22:35:29 Player: NextToZero Result: Destroyed by Y-54 Guardian with Gatling Laser Performance ------------- Evolutions (3) 1500 Regions Visited (7) 1400 Robots Destroyed (117) 585 Value Destroyed (4606) 4606 Prototype IDs (15) 300 Alien Tech Used (0) 0 Bonus (1359) 1359 TOTAL SCORE: 9750 Bonus ------- High Alert Combat Kills 988 Follower Combat Kills 77 Entered Garrisons 200 Used RIF Installer 500 Friendly Fire -406 Cogmind --------- Core Integrity 0/700 Matter 230/300 Energy 23/100 System Corruption 3% Temperature Cool (6) Movement Core (50) Location -7/Storage Parts ------- > --- POWER (1) -------- (None) > --- PROPULSION (4) --- (None) > --- UTILITY (5) ------ Weight Redist. System Advanced Hacking Suite System Shield Relay Coupler [NC] (2) > --- WEAPON (3) ------- (None) > --- INVENTORY (5) ---- Micro Nuclear Core Hardened Light Armor Plating Improved Light Armor Plating Remote Datajack Mace Peak State ------------ > --- POWER ------------ Light Nuclear Core > --- PROPULSION ------- Advanced Treads Cooled VTOL Module Cooled VTOL Module Cooled VTOL Module > --- UTILITY ---------- Small Storage Unit Weight Redist. System Advanced Targeting Computer Advanced Hacking Suite Authchip [R/Combat] > --- WEAPON ----------- Minigun KE Penetrator Remote Datajack > --- INVENTORY -------- Light Ion Engine Advanced Treads Advanced Treads Cooled VTOL Module Variable Charge Gun Smartbomb Launcher Spear [Rating: 53] Favorites ----------- Power Light Nuclear Core Engine Improved Ion Engine Power Core Light Nuclear Core Propulsion Light Treads Treads Light Treads Leg VSS Leg Wheel Armored Wheel Flight Unit Cooled VTOL Module Utility Improved Light Armor Plating Device Improved Heat Sink Storage Small Storage Unit Processor Advanced Targeting Computer Hackware Advanced Hacking Suite Protection Improved Light Armor Plating Weapon Heavy Assault Rifle Energy Gun Variable Charge Gun Energy Cannon Advanced Beam Cannon Ballistic Gun Heavy Assault Rifle Launcher Smartbomb Launcher Special Weapon Remote Datajack Impact Weapon Mace Slashing Weapon Blade Saw Piercing Weapon Spear Special Melee Weapon Improved Datajack Build | -11 -10 -9 -8 -8 -8 -7 -7 ------- Run | Yrd Mat Mat Mat Gar Mat Fac Sto Slots Evolved 6 | . . 2 2 . . 2 . Power . | . . . . . . . . Propulsion 2 | . . 2 . . . . . Utility 3 | . . . 1 . . 2 . Weapon 1 | . . . 1 . . . . Parts Attached 173 | 7 10 19 7 29 17 69 15 Power 24 | 1 3 1 1 5 1 10 2 Engine 17 | 1 3 1 1 4 . 5 2 Core 7 | . . . . 1 1 5 . Reactor . | . . . . . . . . Propulsion 45 | 2 2 11 . 5 8 13 4 Treads 20 | . . 3 . 4 8 2 3 Leg 8 | 2 . 5 . 1 . . . Wheel 5 | . . 3 . . . 1 1 Hover . | . . . . . . . . Flight 12 | . 2 . . . . 10 . Utility 39 | 2 3 2 4 9 3 14 2 Device 12 | . 2 . 1 4 . 5 . Storage 5 | 2 . . . 1 1 1 . Processor 4 | . 1 1 1 . . 1 . Hackware 9 | . . . . . 1 7 1 Protection 9 | . . 1 2 4 1 . 1 Artifact . | . . . . . . . . Weapon 65 | 2 2 5 2 10 5 32 7 Energy Gun 17 | 2 1 1 1 3 2 5 2 Energy Cannon 3 | . . 1 . . 1 1 . Ballistic Gun 26 | . 1 3 1 5 2 14 . Ballistic Cannon . | . . . . . . . . Launcher 7 | . . . . 1 . 4 2 Special Weapon 4 | . . . . . . 3 1 Impact Weapon 4 | . . . . . . 2 2 Slashing Weapon 1 | . . . . 1 . . . Piercing Weapon 2 | . . . . . . 2 . Special Melee Weapon 1 | . . . . . . 1 . Unidentified Prototypes 8 | . . 1 1 . 1 5 . Parts Lost 35 | . . 3 . 8 . 10 14 Power 4 | . . 1 . 1 . 1 1 Propulsion 13 | . . . . 2 . 5 6 Utility 8 | . . 2 . 2 . 2 2 Weapon 10 | . . . . 3 . 2 5 Highest Loss Streak 5 | . . 2 . 4 . 5 5 To Critical Strikes 1 | . . . . 1 . . . Average Slot Usage (%) 91 | . 95 81 99 92 96 92 76 Engine 4 | . 14 9 9 6 . 3 6 Core 3 | . . . . 2 9 3 . Treads 16 | . . 19 . 16 36 5 12 Leg 8 | . 18 7 36 18 . . . Flight 5 | . 9 3 . . . 19 3 Device 6 | . 1 . 2 9 3 7 7 Storage 4 | . 16 . . . 8 6 3 Processor 2 | . 7 9 11 1 . 2 . Hackware 7 | . . . . . 5 17 21 Protection 7 | . . 8 11 14 8 1 2 Energy Gun 6 | . 26 1 . 6 8 3 7 Energy Cannon 2 | . . 10 9 2 4 . . Ballistic Gun 7 | . . 9 18 7 9 10 . Launcher 1 | . . . . 2 2 1 3 Slashing Weapon 1 | . . . . 3 . . . Peak Build Rating 53 | 7 8 25 34 36 43 53 42 Average Rating 32 | 5 6 13 30 29 37 46 33 On Entrance 23 | . 7 7 25 34 36 43 38 Naked Turns . | . . . . . . . . Heaviest Build 34 | 16 16 19 27 29 34 31 31 Greatest Support 90 | 20 20 60 48 80 90 88 76 Greatest Overweight (x) 6 | 3 3 1 . 2 . 6 2 Average Overweight (x) . | . . . . . . . . Largest Inventory Capacity 10 | 8 8 5 5 5 10 10 8 Average Capacity 7 | 7 7 5 5 5 9 8 6 Most Carried 10 | 3 5 5 5 5 10 10 8 Average Carried 6 | 2 4 4 4 4 9 8 5 Final Capacity 10 | 8 5 5 5 5 10 8 5 Final Carried 10 | 3 5 5 5 5 10 7 5 Class Distribution -------------------- 22% | Tank 18% | Mutant 16% | Scavenger-Tank 14% | Scavenger-Mutant 6% | Gunner 4% | Scavenger-Sprinter 4% | Hacker-Gunner 4% | Sprinter 3% | Scavenger-Gunner Dominant Class ---------------- Mutant | -10/Materials Mutant | -9/Materials Tank | -8/Materials Scavenger-Tank | -8/Garrison Tank | -8/Materials Scavenger-Sprinter | -7/Factory Scavenger-Mutant | -7/Storage Resources | -11 -10 -9 -8 -8 -8 -7 -7 ----------- Run | Yrd Mat Mat Mat Gar Mat Fac Sto Matter Collected 3664 | 356 68 145 304 722 451 1081 537 Remotely . | . . . . . . . . Salvage Created 4051 | 141 109 192 84 745 897 1383 500 Parts 234 | 6 15 15 5 42 61 65 25 Haulers Intercepted 3 | . . . . . 2 1 . Recyclers Shooed 3 | . . . . . . 1 2 Parts Field Recycled . | . . . . . . . . Retrieved Matter . | . . . . . . . . Parts Self-Destructed . | . . . . . . . . Prevented . | . . . . . . . . Kills | -11 -10 -9 -8 -8 -8 -7 -7 ------- Run | Yrd Mat Mat Mat Gar Mat Fac Sto Combat Hostiles Destroyed 82 | . 5 4 1 21 15 26 10 Melee 1 | . . . . 1 . . . Guns 52 | . 5 2 1 14 13 12 5 Cannons 9 | . . 2 . 5 2 . . AOE 20 | . . . . 1 . 14 5 Classes Destroyed 17 | 3 2 2 1 1 3 4 1 Worker 10 | 2 . . . . . 3 5 Builder 3 | . . . 1 . 1 . 1 Tunneler 1 | 1 . . . . . . . Hauler 3 | . . . . . 2 1 . Recycler 7 | 1 . . . . . 4 2 Mechanic 2 | . . . . . 1 1 . Operator 3 | . . . . . . 3 . Watcher 4 | . . 1 . . 3 . . Swarmer 15 | . 3 . . 6 3 3 . Cutter 2 | . . . . 2 . . . Grunt 42 | . 2 3 . 8 7 15 7 Brawler 3 | . . . . . . 3 . Protector 1 | . . . . . . 1 . Sentry 15 | . . 1 1 5 3 3 2 Specialist 2 | . . . . . 2 . . Hunter 1 | . . . . . . 1 . Programmer 1 | . . . . . . . 1 Thug 2 | . . . . . . 2 . Best Kill Streak 7 | 4 3 3 1 3 5 7 5 Combat Bots Only 6 | . 3 1 1 3 5 6 4 Max Kills in Single Turn 8 | 1 2 1 1 1 1 8 4 Gunslinging 1 | . 1 . . . . . . Exploded 5 | . . . . 1 . 5 3 Melee 1 | . . . . 1 . . . Uniques/NPCs Destroyed . | . . . . . . . . Combat | -11 -10 -9 -8 -8 -8 -7 -7 -------- Run | Yrd Mat Mat Mat Gar Mat Fac Sto Hostile Shots Fired 735 | . 46 29 10 135 74 186 255 Missed 304 | . 27 7 1 41 24 106 98 Damage Taken 5966 | 38 197 283 136 1304 792 1444 1772 Core 1050 | 19 75 12 14 175 55 259 441 Absorbed by Shields . | . . . . . . . . Regen/Repaired (Parts) 143 | . . . . . 44 . 99 Core Remaining (%) 76 | 92 62 97 . . 55 . . Volleys Fired 306 | 7 8 20 7 70 55 81 58 Largest 3 | 2 2 2 3 3 3 3 2 Hottest 250 | 80 105 91 114 225 225 250 225 Shots Fired 555 | 14 15 33 21 150 115 142 65 Gun 417 | 14 15 13 14 108 92 118 43 Cannon 86 | . . 20 7 36 23 . . Launcher 33 | . . . . 6 . 16 11 Special 19 | . . . . . . 8 11 Kinetic 255 | . . 13 14 76 57 95 . Thermal 186 | . 4 20 7 68 35 23 29 Explosive 33 | . . . . 6 . 16 11 Electromagnetic 62 | 14 11 . . . 23 . 14 Robot Hit Streak 13 | 2 7 5 3 12 13 10 6 Robot Miss Streak 6 | 2 3 3 2 6 6 6 4 Penetration Max 1 | . . . . . 1 1 . Secondary Targets 5 | . 1 . . 3 . . 1 Max Gunslinging Chain 1 | . 1 . . 1 . . 1 Shots Hit Robots 308 | 6 9 16 10 82 62 84 39 Core Hits 189 | 4 8 7 3 35 31 72 29 Critical Kills . | . . . . . . . . Critical Parts Destroyed 2 | . . . . 1 1 . . Critical Strikes 5 | . . . . 2 1 . 2 Burn 1 | . . . . . . . 1 Destroy 2 | . . . . 1 1 . . Corrupt 1 | . . . . . . . 1 Sever 1 | . . . . 1 . . . Melee Attacks 23 | . . . . 12 . 11 . Impact 3 | . . . . . . 3 . Slashing 12 | . . . . 12 . . . Piercing 4 | . . . . . . 4 . Sneak Attacks 5 | . . . . . . 5 . Combat Hostiles . | . . . . . . . . Follow-up Attacks . | . . . . . . . . Damage Inflicted 9850 | 95 124 318 190 1682 1681 3823 1937 Guns 4425 | 69 124 131 103 908 1168 1343 579 Cannons 1137 | . . 182 82 510 363 . . Explosions 4150 | 26 . . . 213 150 2406 1355 Melee 125 | . . . . 51 . 74 . Ramming 13 | . . 5 5 . . . 3 Kinetic 2278 | . . 131 103 569 538 937 . Thermal 3416 | 26 50 182 82 849 780 1011 436 Explosive 3309 | . . . . 213 . 1801 1295 Electromagnetic 709 | 69 74 . . . 363 . 203 Impact 74 | . . . . . . 74 . Slashing 51 | . . . . 51 . . . Piercing . | . . . . . . . . Highest Corruption 3 | . . . . . . 3 3 Average Corruption 2 | . . . . . . 2 3 Corruption Purged . | . . . . . . . . Corruption Blocked . | . . . . . . . . Effects 21 | . . . . . . 10 11 Message Errors 8 | . . . . . . 5 3 Matter Fused 5 | . . . . . . 2 3 Heat Flow Errors 1 | . . . . . . 1 . Parts Rejected 1 | . . . . . . 1 . Data Loss (minor) 6 | . . . . . . 1 5 Overload Shots 18 | . . . . 4 6 2 6 Effects 1 | . . . . . . . 1 Heat Surge 1 | . . . . . . . 1 Overflow Damage 275 | . . . . . 105 131 39 Projectiles . | . . . . . . . . Explosions 275 | . . . . . 105 131 39 Melee . | . . . . . . . . Knockbacks . | . . . . . . . . Impact . | . . . . . . . . Kinetic . | . . . . . . . . Secondary . | . . . . . . . . Self-Inflicted Damage 492 | 38 . . . . 99 290 65 Shots 10 | 1 . . . . 1 5 3 Rammed 2 | . . . . . . . 2 Targets Rammed 4 | . . 1 1 . . . 2 Kicked 2 | . . 1 1 . . . . Crushed . | . . . . . . . . Highest Temperature 624 | 48 147 282 252 624 352 375 556 Average Temperature 104 | 21 48 89 81 155 111 52 143 Received Heat Transfer 1917 | . 96 111 45 486 270 294 615 Effects 26 | . . . . 16 2 2 6 Shutdowns 7 | . . . . 4 1 . 2 Energy Bleed 3 | . . . . 1 . . 2 Interference 6 | . . . . 4 . 2 . Matter Decay 5 | . . . . 3 . . 2 Short Circuit 3 | . . . . 2 1 . . Damage (major) 2 | . . . . 2 . . . Siege Activations . | . . . . . . . . Robots Corrupted . | . . . . . . . . Combat Hostiles . | . . . . . . . . Parts Fried 2 | . . . . . 1 . 1 Impact Corruptions . | . . . . . . . . Robots Melted . | . . . . . . . . Combat Hostiles . | . . . . . . . . Parts Melted 7 | . . . 1 3 2 1 . Heat Transferred 5284 | 50 65 333 148 1621 1064 1211 792 Parts Sabotaged . | . . . . . . . . Parts Stolen . | . . . . . . . . Parts Stripped . | . . . . . . . . Power Chain Reactions 3 | 1 . . . . 1 . 1 Alert | -11 -10 -9 -8 -8 -8 -7 -7 ------- Run | Yrd Mat Mat Mat Gar Mat Fac Sto Peak Influence 1257 | 20 175 176 141 1084 950 1257 940 Initial 566 | . 13 73 74 94 528 387 566 Average 577 | 5 70 137 122 621 679 677 764 Maximum Alert Level 4 | . . . . 3 3 4 3 Low Security (%) 19 | 100 100 100 100 9 . . . Level 1 5 | . . . . 11 . 10 . Level 2 35 | . . . . 26 72 50 14 Level 3 38 | . . . . 51 27 31 85 Level 4 1 | . . . . . . 8 . Level 5 . | . . . . . . . . High Security . | . . . . . . . . Max Security . | . . . . . . . . Squads Dispatched 21 | . 2 . . . 7 11 1 Investigation 4 | . 2 . . . . 2 . Extermination 1 | . . . . . . . 1 Reinforcement 11 | . . . . . 5 6 . Assault 5 | . . . . . 2 3 . Garrison . | . . . . . . . . Intercept . | . . . . . . . . Searches Triggered . | . . . . . . . . Construction Impeded 2 | . . . . . 2 . . Haulers Reinforced 1 | . . . . . . 1 . Active Scanning Responses . | . . . . . . . . Cargo Convoy Interrupts . | . . . . . . . . Stealth | -11 -10 -9 -8 -8 -8 -7 -7 --------- Run | Yrd Mat Mat Mat Gar Mat Fac Sto Distress Signals 5 | . . 1 . . . 2 2 Communications Jammed . | . . . . . . . . Distress Signals . | . . . . . . . . Times Spotted 160 | . 8 6 3 27 28 64 24 Peak Tracking Total 9 | . 3 2 2 4 8 9 6 Tactical Retreats 19 | . . . . 4 2 10 3 Traps | -11 -10 -9 -8 -8 -8 -7 -7 ------- Run | Yrd Mat Mat Mat Gar Mat Fac Sto Traps Triggered 6 | . 2 . . 1 . 3 . Indirectly . | . . . . . . . . Trap Hack Attempts . | . . . . . . . . Triggered . | . . . . . . . . Disarmed . | . . . . . . . . Reprogrammed . | . . . . . . . . Reused . | . . . . . . . . Traps Extracted . | . . . . . . . . Installed . | . . . . . . . . Triggered . | . . . . . . . . Machines | -11 -10 -9 -8 -8 -8 -7 -7 ---------- Run | Yrd Mat Mat Mat Gar Mat Fac Sto Machines Disabled 28 | . 1 1 . 6 7 9 4 Max in Single Turn 4 | . 1 1 . 1 2 4 1 Garrison Access 2 | . . . . . . 2 . Garrison Relay 4 | . . . . 4 . . . Machines Repaired . | . . . . . . . . Machines Dismantled . | . . . . . . . . Machines Sabotaged . | . . . . . . . . Overloaded Fab Kills . | . . . . . . . . Hacking | -11 -10 -9 -8 -8 -8 -7 -7 --------- Run | Yrd Mat Mat Mat Gar Mat Fac Sto Machines Accessed 38 | . 4 1 2 4 6 16 5 Terminals 25 | . 4 . 1 4 4 9 3 Fabricators 1 | . . . . . . 1 . Repair Stations 4 | . . 1 . . 1 1 1 Recycling Units 3 | . . . . . . 2 1 Scanalyzers 2 | . . . . . 1 1 . Garrison Access 3 | . . . 1 . . 2 . Total Hacks 97 | . 15 1 4 8 15 39 15 Successful 54 | . 6 1 3 3 9 28 4 Failed 43 | . 9 . 1 5 6 11 11 Catastrophic 10 | . . . 1 1 2 3 3 Database Lockouts . | . . . . . . . . Manual . | . . . . . . . . Terminals 68 | . 15 . 3 8 10 26 6 Fabricators 1 | . . . . . . 1 . Repair Stations 10 | . . 1 . . 3 2 4 Recycling Units 9 | . . . . . . 4 5 Scanalyzers 4 | . . . . . 2 2 . Garrison Access 5 | . . . 1 . . 4 . Terminal Hacks 34 | . 6 . 2 3 4 18 1 Robot Analysis 1 | . 1 . . . . . . Prototype ID Bank 3 | . 1 . . . . 2 . Open Door 2 | . . . . 1 . . 1 Open DSF 1 | . . . . . . 1 . Branch Access Points 2 | . 1 . . . . 1 . Emergency Access Points 4 | . 1 . . 1 1 1 . Scanalyzer Index 1 | . . . . . . 1 . Alert Level 3 | . . . . . 1 2 . Unreport Threat 2 | . . . . . . 2 . Locate Traps 2 | . . . . . . 2 . Dispatch Records 1 | . . . . . 1 . . Security Status 1 | . . . . . . 1 . Transport Status 3 | . 2 . 1 . . . . Recall Investigation 2 | . . . . . . 2 . Recall Reinforcements 1 | . . . . . . 1 . Recall Assault 1 | . . . . . 1 . . Hauler Manifests 2 | . . . . . . 2 . Zone Layout 1 | . . . 1 . . . . Garrison Registry 1 | . . . . 1 . . . Fabricator Hacks 1 | . . . . . . 1 . Build 1 | . . . . . . 1 . Repair Station Hacks 8 | . . 1 . . 3 2 2 Scan Component 4 | . . . . . 2 1 1 Repair 3 | . . . . . 1 1 1 Refit 1 | . . 1 . . . . . Recycling Unit Hacks 3 | . . . . . . 2 1 Report Inventory 2 | . . . . . . 2 . Retrieve Components 1 | . . . . . . . 1 Scanalyzer 3 | . . . . . 2 1 . Insert Component 2 | . . . . . 1 1 . Analyze 1 | . . . . . 1 . . Garrison Access Hacks 5 | . . . 1 . . 4 . Unlock Access 1 | . . . 1 . . . . Seal Access 2 | . . . . . . 2 . Coupler Status 2 | . . . . . . 2 . Unauthorized Hacks . | . . . . . . . . Terminals . | . . . . . . . . Fabricators . | . . . . . . . . Repair Stations . | . . . . . . . . Recycling Units . | . . . . . . . . Scanalyzers . | . . . . . . . . Garrison Access . | . . . . . . . . Data Cores Recovered . | . . . . . . . . Used . | . . . . . . . . Hacking Detections 28 | . 4 . 1 2 5 12 4 Full Trace Events 3 | . 1 . . . . 2 . Feedback Events 1 | . . . . . . 1 . Corruption 1 | . . . . . . 1 . Feedback Blocked . | . . . . . . . . Robot Schematics Acquired . | . . . . . . . . Robots Built . | . . . . . . . . Authchips . | . . . . . . . . Time . | . . . . . . . . Total Robot Build Rating . | . . . . . . . . Part Schematics Acquired 1 | . . . . . 1 . . Parts Built 2 | . . . . . . 2 . Authchips . | . . . . . . . . Time 53 | . . . . . . 53 . Total Part Build Rating 12 | . . . . . . 12 . Parts Repaired 2 | . . . . . 1 . 1 Time 164 | . . . . . 38 70 56 Parts Recycled . | . . . . . . . . Recycled Matter . | . . . . . . . . Retrieved Matter . | . . . . . . . . Retrieved Components 10 | . . . . . . . 10 Parts Scanalyzed 1 | . . . . . 1 . . Part Schematics Acquired 1 | . . . . . 1 . . Parts Damaged . | . . . . . . . . Bothacking | -11 -10 -9 -8 -8 -8 -7 -7 ------------ Run | Yrd Mat Mat Mat Gar Mat Fac Sto Used RIF Installer 1 | . . . . 1 . . . Robots Hacked 14 | . . . . . . 9 5 Non-combat 11 | . . . . . . 6 5 Combat 3 | . . . . . . 3 . Robot Hacks Applied 17 | . . . . . . 11 6 parse_system 1 | . . . . . . 1 . no_distress 2 | . . . . . . 2 . generate_anomaly 1 | . . . . . . . 1 generate_echo 1 | . . . . . . . 1 randomize_corridors 1 | . . . . . . 1 . drop_inventory 1 | . . . . . . . 1 check_alert 1 | . . . . . . 1 . mark_security 1 | . . . . . . . 1 link_fov 1 | . . . . . . . 1 amplify_resonance 1 | . . . . . . 1 . overwrite_iff 2 | . . . . . . 2 . streamctrl_low 2 | . . . . . . 1 1 formatsys_low 1 | . . . . . . 1 . formatsys_high 1 | . . . . . . 1 . Relay Couplers Released 18 | . . . . 15 . 3 . Machine Destruction 18 | . . . . 15 . 3 . Attached 4 | . . . . . . 3 1 Fabnet Peak Effective % . | . . . . . . . . Robots Rewired . | . . . . . . . . Allies Hacked . | . . . . . . . . Hacks Repelled . | . . . . . . . . Allies | -11 -10 -9 -8 -8 -8 -7 -7 -------- Run | Yrd Mat Mat Mat Gar Mat Fac Sto Total Allies 8 | . . . . . . 7 1 Largest Group 4 | . . . . . . 4 1 Highest-Rated Group 116 | . . . . . . 116 6 Highest-Rated Ally 31 | . . . . . . 31 6 Total Orders . | . . . . . . . . Ally Attacks 52 | . . . . . . 52 . Total Damage 696 | . . . . . . 696 . Kills 2 | . . . . . . 2 . Allies Corrupted . | . . . . . . . . Allies Melted . | . . . . . . . . Intel | -11 -10 -9 -8 -8 -8 -7 -7 ------- Run | Yrd Mat Mat Mat Gar Mat Fac Sto Robot Analysis Total 1 | . 1 . . . . . . Derelict Logs Recovered . | . . . . . . . . Drone Launches . | . . . . . . . . Drone Recoveries . | . . . . . . . . Exploration | -11 -10 -9 -8 -8 -8 -7 -7 ------------- Run | Yrd Mat Mat Mat Gar Mat Fac Sto Turns Passed 5856 | 136 274 335 192 1820 1247 1187 665 Spaces Moved 4394 | 86 274 226 168 1120 661 1528 331 Core 87 | 9 1 . . . . 11 66 Treads 1675 | . . 94 . 504 661 153 263 Legs 1015 | 77 103 51 168 616 . . . Wheels 23 | . . 11 . . . 10 2 Hover . | . . . . . . . . Flight 1594 | . 170 70 . . . 1354 . Fastest Speed 23 | 50 37 37 90 90 145 23 50 Average Speed 100 | 118 70 104 90 134 153 46 144 Slowest Speed 425 | 200 200 200 90 270 160 425 240 Overloaded Moves 235 | . . . . . . 235 . Propulsion Burnouts . | . . . . . . . . Robots Hopped 9 | . 6 1 . . . 2 . Cave-ins Triggered . | . . . . . . . . Exploration Rate (%) 34 | 5 39 22 11 89 48 35 29 Regions Visited 7 Branch Regions 1 Pre-discovered Areas . | . . . . . . . . Known Exits Taken 4 | . 1 1 1 . . 1 . Unknown Exits Taken 2 | 1 . . . . 1 . . Scrap Searched . | . . . . . . . . Spaces Dug 2 | . . . . . . 2 . Terrain Destroyed 538 | 4 . . . 75 76 227 156 Melee 2 | . . . . . . 2 . Projectile 33 | . . . . 3 23 5 2 AOE 503 | 4 . . . 72 53 220 154 Terrain Rammed . | . . . . . . . . Walls Destroyed . | . . . . . . . . Machines Disabled . | . . . . . . . . Actions | -11 -10 -9 -8 -8 -8 -7 -7 --------- Run | Yrd Mat Mat Mat Gar Mat Fac Sto Total 5336 | 102 333 293 193 1285 805 1872 453 Wait 209 | . 37 . 3 16 50 74 29 Move 4372 | 85 263 223 168 1119 660 1523 331 Hop 7 | . 4 1 . . . 2 . Pick Up 57 | 3 1 7 2 9 7 18 10 Fast Attach 100 | 7 7 17 4 16 5 38 6 Attach 34 | . . 1 2 6 1 18 6 Detach 17 | . 2 1 1 2 2 8 1 Swap 40 | . 3 1 1 8 11 13 3 Drop 126 | . 8 21 4 22 14 50 7 Fire 306 | 7 8 20 7 70 55 81 58 Melee 23 | . . . . 12 . 11 . Ram . | . . . . . . . . Kick 2 | . . 1 1 . . . . Crush 2 | . . . . . . . 2 Escape Stasis 41 | . . . . 5 . 36 . Rewire . | . . . . . . . . Trap . | . . . . . . . . Miscellaneous . | . . . . . . . . Route ------- -11/Scrapyard -10/Materials (discovered 2 exits: *Mat / Min) -9/Materials -8/Materials -8/Garrison (discovered 3 exits: *Mat x3) -8/Materials -7/Factory (discovered 3 exits: *Sto / Low x2) -7/Storage History --------- Turn | Location | Event 14 | -11/Scrapyard | Discovered new exit (range 16) 137 | -11/Scrapyard | Entered Materials 176 | -10/Materials | Identified exit to Mines 363 | -10/Materials | Discovered new exit (range 16) 374 | -10/Materials | Build established: Mutant 411 | -10/Materials | Identified exit to Materials 411 | -10/Materials | Entered another Materials area 411 | -9/Materials | Evolved 2 slots: Propulsion x2 633 | -9/Materials | Discovered new exit (range 15) 654 | -9/Materials | Identified exit to Materials 746 | -9/Materials | Entered another Materials area 746 | -8/Materials | Evolved 2 slots: Utility x1, Weapon x1 938 | -8/Materials | Identified exit to Garrison 938 | -8/Materials | Entered Garrison 958 | -8/Garrison | Triggered checkpoint 1031 | -8/Garrison | Garrison Relay disabled 1328 | -8/Garrison | Garrison Relay disabled 1414 | -8/Garrison | Triggered checkpoint 1442 | -8/Garrison | Discovered new exit (range 12) 1472 | -8/Garrison | Triggered checkpoint 1517 | -8/Garrison | Lost 4 parts (1p1u2w) 1538 | -8/Garrison | Garrison Relay disabled 1646 | -8/Garrison | Triggered checkpoint 1675 | -8/Garrison | Discovered new exit (range 62) 1675 | -8/Garrison | Discovered new exit (range 75) 1675 | -8/Garrison | Discovered new exit (range 18) 1694 | -8/Garrison | Garrison Relay disabled 2005 | -8/Garrison | Build established: Scavenger-Mutant 2255 | -8/Garrison | Triggered checkpoint 2324 | -8/Garrison | Triggered checkpoint 2455 | -8/Garrison | Build established: Scavenger-Tank 2721 | -8/Garrison | Installed Relay Interface Framework 2758 | -8/Garrison | Entered Materials 3158 | -8/Materials | First assault squad dispatched 3308 | -8/Materials | Repaired Imp. Light Armor Plating 3614 | -8/Materials | Build established: Tank 3811 | -8/Materials | Discovered new exit (range 4) 4005 | -8/Materials | Entered Factory 4005 | -7/Factory | Evolved 2 slots: Utility x2 4405 | -7/Factory | First assault squad dispatched 4460 | -7/Factory | Allied Derelicts emerged from ambush trap array 4627 | -7/Factory | Lost 3 allies 4787 | -7/Factory | Fabricated Imp. Component Analysis Suite? 4988 | -7/Factory | Identified exit to Storage 4988 | -7/Factory | Identified exit to Lower Caves 5171 | -7/Factory | Lost 5 parts (3n1u1w) 5192 | -7/Factory | Entered Storage 5399 | -7/Storage | Core integrity fell below 50% 5597 | -7/Storage | Lost 5 parts (3n1u1w) 5706 | -7/Storage | Repaired Smartbomb Launcher 5847 | -7/Storage | Core integrity fell below 20% 5849 | -7/Storage | Lost 4 parts (1n1u2w) 5857 | -7/Storage | Destroyed by Y-54 Guardian with Gatling Laser Last Messages --------------- 05844_ Connecting with Recycling Unit... >>Retrieve(Components) Retrieving 10/15 components... Com. Wheel Com. Wheel Imp. Heat Sink Med. Matter Pod Mic. Nuclear Core Corrupted Flak Gun Imp. Heat Sink Hvy. Deuterium Engine Lgt. Ion Engine Mace 05844_ Acquired Com. Wheel. 05847_ Acquired Mace. 05849_ Dropped Faulty Cld. VTOL Module. 05849_ Acquired Mic. Nuclear Core. 05850_ Com. Wheel destroyed. 05850_ S-27 Virus destroyed. 05851_ Acquired 24 matter. Map ----- +----------------------------------------------------+ | ???######"""""#????????# # ##???? | | # ### "T""########## ####### # ##???? | | #???? | | #???? | | % #???? | | # ##### # +######+######## # ##???? | | ????????##### ## #?## # # #???? | | ????????#!!! ### #### # ### #???? | | ????????#! ### """# ######?# #???? | | ????????##### # # "" R"# ##????# ##???? | | ????????????# #### """ """# #????# #????? | | ????????????###??# T" ## # #????# #????? | | ????????????????## """ ## # # #??### #????? | | ????????????????# "" + # ### ## #????? | | ????????????????## # # # # #????? | | ?????????????????############ #=!! # #????? | | ???????????"########### =# =""" # #????? | | ??????????? /![ Y" # #????? | | ??????????? [# *""" # #????? | | ?????????? k # * # #????? | | ???????????# ####+### = #????? | | ???????????# #??????# #????? | | ???????????+ #??????#####????? | | ??????????????##### ########???????????????? | | ??????????????????# #########??????????????? | | ??????????????????# @ Y +?????????? | | ??????????????????################??????????????? | | ????????????????????????????????????????????????? | | ????????????????????????????????????????????????? | | ????????????????????????????????????????????????? | | ????????????????????????????????????????????????? | | | | | | | | | | | | | | | | | | | | | | | | | | | | | | | | | | | | | | | +----------------------------------------------------+ Best States ------------- Heat Dissipation 48 Energy Generation 18 Energy Capacity 340 Matter Stores 400 Matter Capacity 400 Sight Range 16 Robot Scan Range 14 Terrain Scan Density 10 Jamming Range 12 Additional Mass Support 6 Armor Coverage 375 Evasion (%) 73 Targeting Accuracy 8 Recoil Reduction 4 Offensive Hacking 24 Defensive Hacking 10 Relay Coupler Types 1 Relay Coupler Value 28 Authchip Count 1 Item Schematics ----------------- Adv. Treads | -8/Materials | Scanalyzed Robot Schematics ------------------ None Fabricated ------------ Imp. Component Analysis Suite | x2 | -7/Factory | Preloaded Alien Tech Used ----------------- None Achievements -------------- Assimilation Complete Challenges ------------ None Game ------ Seed PoweredPointyStorage Manual? 0 Play Time 02:01:31 Cumulative 20.6 hours Start 2024.10.27 @ 20:19:34 End 2024.10.27 @ 22:35:29 Sessions 1 Manual Loads 0 Difficulty Rogue Special Mode None Game No. 28 Rogue 28 Adventurer 0 Explorer 0 Win Type - Total 0 Types 0/0/0/0/0/0/0/0/0 Lore% 14 Gallery% 30 Achievement% 26 Wizard Run 0 Options --------- Layout 0 ASCII 0 Keyboard 0 Movement Mouse Keybinds 0 Fullscreen 1 Font 36/Smallcaps Map View 38x25 Zoom Use 97% Tactical HUD 1 Map Filters NONE Filters NONE Steam 1 RUN: cc709a3b-1ef8-4230-84a4-8a320ee625d6